Cogmind - Beta 15 @@@ ROGUE MODE // 2025.09.16 @ 20:49:56 Player: Lillith Result: Destroyed by 3G-VEV(R) with Subdweller Beam Cannon Performance ------------- Evolutions (0) 0 Regions Visited (2) 400 Robots Destroyed (18) 90 Value Destroyed (519) 519 Prototype IDs (0) 0 Alien Tech Used (0) 0 Bonus (0) 0 TOTAL SCORE: 1009 Bonus ------- None Cogmind --------- Core Integrity 0/250 Matter 360/500 Energy 147/200 System Corruption 0% Temperature Cool (9) Movement Rolling (95) Ox1 Location -10/Subcaves Parts ------- > --- POWER (1) -------- Subdweller Power Source > --- PROPULSION (2) --- Light Treads Wheel > --- UTILITY (2) ------ Small Storage Unit High-capacity Matter Pod > --- WEAPON (2) ------- Battle Cannon > --- INVENTORY (8) ---- Rocket Launcher Rocket Launcher Peak State ------------ > --- POWER ------------ Ion Engine > --- PROPULSION ------- Light Treads Subdweller Monowheel > --- UTILITY ---------- Small Storage Unit Subdweller Optics > --- WEAPON ----------- Beam Cannon Subdweller Machine Gun > --- INVENTORY -------- Subdweller Power Source Light Treads Wheel High-capacity Matter Pod Battle Cannon Rocket Launcher Rocket Launcher [Rating: 11] Favorites ----------- Power Ion Engine Engine Ion Engine Propulsion Light Treads Treads Light Treads Wheel Wheel Utility Small Storage Unit Device Seismic Detector Storage Small Storage Unit Weapon Light Cannon Energy Gun EM Pulse Gun Energy Cannon Beam Cannon Ballistic Gun Subdweller Machine Gun Ballistic Cannon Light Cannon Build | -11 -10 -10 ------- Run | Yrd Mat Sub Slots Evolved . | . . . Power . | . . . Propulsion . | . . . Utility . | . . . Weapon . | . . . Parts Attached 21 | 8 2 11 Power 3 | 1 . 2 Engine 3 | 1 . 2 Core . | . . . Reactor . | . . . Propulsion 5 | 2 . 3 Treads 2 | 1 . 1 Leg . | . . . Wheel 3 | 1 . 2 Hover . | . . . Flight . | . . . Utility 4 | 2 . 2 Device 2 | 1 . 1 Storage 2 | 1 . 1 Processor . | . . . Hackware . | . . . Protection . | . . . Artifact . | . . . Weapon 9 | 3 2 4 Energy Gun 1 | 1 . . Energy Cannon 1 | . . 1 Ballistic Gun 3 | 2 . 1 Ballistic Cannon 4 | . 2 2 Launcher . | . . . Special Weapon . | . . . Impact Weapon . | . . . Slashing Weapon . | . . . Piercing Weapon . | . . . Special Melee Weapon . | . . . Unidentified Prototypes . | . . . Parts Lost 10 | . . 10 Power 2 | . . 2 Propulsion 2 | . . 2 Utility 2 | . . 2 Weapon 4 | . . 4 Highest Loss Streak 7 | . . 7 To Critical Strikes 1 | . . 1 Average Backups 6 | 3 7 7 Power . | . 1 . Propulsion 2 | 2 3 2 Utility 1 | . . 1 Weapon 2 | . 2 3 Tool/Special . | . . . Unused Backups 5 | . 3 2 Power . | . . . Propulsion 2 | . 2 . Utility . | . . . Weapon 3 | . 1 2 Tool/Special . | . . . Average Slot Usage (%) 99 | . 100 98 Engine 13 | . 14 13 Treads 13 | . 14 13 Wheel 13 | . 14 13 Device 13 | . 14 13 Storage 14 | . 14 14 Energy Cannon 4 | . . 5 Ballistic Gun 7 | . 5 7 Ballistic Cannon 16 | . 22 14 Peak Build Rating 11 | 7 8 11 Average Rating 7 | 4 7 8 On Entrance 5 | . 7 8 Naked Turns . | . . . Heaviest Build 19 | 14 17 19 Greatest Support 20 | 20 10 20 Greatest Overweight (x) 1 | 1 1 1 Average Overweight (x) . | . 1 . Largest Inventory Capacity 8 | 8 8 8 Average Capacity 7 | 6 8 8 Most Carried 8 | 6 8 8 Average Carried 6 | 3 7 7 Final Capacity 8 | 8 8 8 Final Carried 8 | 6 8 2 Class Distribution -------------------- 100% | Mutant Dominant Class ---------------- Mutant | -10/Materials Mutant | -10/Subcaves Resources | -11 -10 -10 ----------- Run | Yrd Mat Sub Matter Collected 698 | 238 142 318 Remotely . | . . . Salvage Created 440 | 25 246 169 Parts 30 | 3 12 15 Haulers Intercepted . | . . . Recyclers Shooed . | . . . Parts Field Recycled . | . . . Retrieved Matter . | . . . Parts Self-Destructed 4 | . . 4 Prevented . | . . . Kills | -11 -10 -10 ------- Run | Yrd Mat Sub Combat Hostiles Destroyed 16 | . 10 6 Guns 3 | . . 3 Cannons 13 | . 10 3 Classes Destroyed 6 | 1 3 2 Tunneler 1 | 1 . . Watcher 1 | . 1 . Swarmer 4 | . 3 1 Grunt 7 | . 7 . Sentry 1 | . . 1 Subdweller 4 | . . 4 Best Kill Streak 8 | 1 8 2 Combat Bots Only 7 | . 7 2 Max Kills in Single Turn 1 | 1 1 1 Gunslinging . | . . . Exploded . | . . . Melee . | . . . Uniques/NPCs Destroyed . | . . . Combat | -11 -10 -10 -------- Run | Yrd Mat Sub Hostile Shots Fired 64 | . 28 36 Missed 15 | . 8 7 Hits 49 | . 20 29 Projectile 49 | . 20 29 Critical Strikes 2 | . . 2 Damage Taken 1153 | . 211 942 Core 259 | . 35 224 Absorbed by Shields . | . . . Core Remaining (%) 100 | 100 . . Volleys Fired 45 | 1 19 25 Largest 2 | 2 2 2 Hottest 90 | 40 60 90 Shots Fired 89 | 2 38 49 Gun 16 | 2 . 14 Cannon 73 | . 38 35 Launcher . | . . . Special . | . . . Kinetic 77 | 2 38 37 Thermal 12 | . . 12 Explosive . | . . . Electromagnetic . | . . . Robot Hit Streak 9 | 1 5 9 Robot Miss Streak 4 | . 4 2 Penetration Max . | . . . Secondary Targets . | . . . Shots Hit Robots 48 | 1 19 28 Core Hits 22 | 1 12 9 Critical Kills . | . . . Critical Parts Destroyed . | . . . Critical Strikes 2 | . 2 . Blast 2 | . 2 . Melee Attacks . | . . . Impact . | . . . Slashing . | . . . Piercing . | . . . Sneak Attacks . | . . . Combat Hostiles . | . . . Follow-up Attacks . | . . . Damage Inflicted 865 | 12 348 505 Guns 240 | 12 . 228 Cannons 625 | . 348 277 Explosions . | . . . Melee . | . . . Ramming . | . . . Kinetic 724 | 12 348 364 Thermal 141 | . . 141 Explosive . | . . . Electromagnetic . | . . . Impact . | . . . Slashing . | . . . Piercing . | . . . Highest Corruption . | . . . Average Corruption . | . . . Corruption Purged . | . . . Corruption Blocked . | . . . Overload Shots . | . . . Overflow Damage . | . . . Projectiles . | . . . Explosions . | . . . Melee . | . . . Knockbacks 5 | . 3 2 Impact . | . . . Kinetic 5 | . 3 2 Secondary . | . . . Self-Inflicted Damage . | . . . Shots . | . . . Rammed . | . . . Targets Rammed . | . . . Kicked . | . . . Crushed . | . . . Highest Temperature 261 | . 24 261 Average Temperature 53 | . 13 143 Received Heat Transfer 473 | . 84 389 Siege Activations . | . . . Martial Activations . | . . . Shielding Activations . | . . . Robots Disrupted . | . . . Combat Hostiles . | . . . Robots Corrupted . | . . . Combat Hostiles . | . . . Parts Fried . | . . . Impact Corruptions . | . . . Robots Melted . | . . . Combat Hostiles . | . . . Parts Melted . | . . . Heat Transferred 296 | . . 296 Parts Sabotaged . | . . . Parts Stolen . | . . . Parts Stripped . | . . . Power Chain Reactions . | . . . Alert | -11 -10 -10 ------- Run | Yrd Mat Sub Maximum Alert Level . | . . . Low Security (%) 100 | 100 100 . Level 1 . | . . . Level 2 . | . . . Level 3 . | . . . Level 4 . | . . . Level 5 . | . . . High Security . | . . . Max Security . | . . . Peak Influence 178 | 5 178 . Initial . | . . . Average 46 | . 66 . Influence Increases 288 | 5 243 40 Destroy 0b10 Robot/C 240 | . 200 40 Destroy 0b10 Robot/NC 10 | 5 5 . Destroy Leader 32 | . 32 . Successful Hack 5 | . 5 . Destroy Structure 1 | . 1 . Influence Decreases 288 | 5 75 208 Entered New Map 81 | . . 81 Time Decay 171 | 5 75 91 Lost Part 36 | . . 36 Squads Dispatched 1 | . 1 . Investigation . | . . . Extermination . | . . . Reinforcement 1 | . 1 . Assault . | . . . Garrison . | . . . Intercept . | . . . Searches Triggered . | . . . Construction Impeded . | . . . Haulers Reinforced . | . . . Active Scanning Responses . | . . . Cargo Convoy Interrupts . | . . . Stealth | -11 -10 -10 --------- Run | Yrd Mat Sub Distress Signals 2 | . 2 . Communications Jammed . | . . . Distress Signals . | . . . Times Spotted 20 | . 13 7 Peak Tracking Total 8 | . 8 2 Tactical Retreats . | . . . Traps | -11 -10 -10 ------- Run | Yrd Mat Sub Traps Triggered 6 | . . 6 Indirectly . | . . . Trap Hack Attempts . | . . . Triggered . | . . . Disarmed . | . . . Reprogrammed . | . . . Reused . | . . . Traps Extracted . | . . . Installed . | . . . Triggered . | . . . Machines | -11 -10 -10 ---------- Run | Yrd Mat Sub Machines Disabled . | . . . Max in Single Turn . | . . . Machines Repaired . | . . . Machines Dismantled . | . . . Machines Sabotaged . | . . . Overloaded Fab Kills . | . . . Hacking | -11 -10 -10 --------- Run | Yrd Mat Sub Machines Accessed 1 | . 1 . Terminals 1 | . 1 . Fabricators . | . . . Repair Stations . | . . . Recycling Units . | . . . Scanalyzers . | . . . Garrison Access . | . . . Total Hacks 4 | . 4 . Successful 2 | . 2 . Failed 2 | . 2 . Catastrophic . | . . . Database Lockouts . | . . . Manual 4 | . 4 . Terminals 4 | . 4 . Fabricators . | . . . Repair Stations . | . . . Recycling Units . | . . . Scanalyzers . | . . . Garrison Access . | . . . Terminal Hacks . | . . . Fabricator Hacks . | . . . Repair Station Hacks . | . . . Recycling Unit Hacks . | . . . Scanalyzer . | . . . Garrison Access Hacks . | . . . Unauthorized Hacks 2 | . 2 . Terminals 2 | . 2 . Botnet 1 | . 1 . Skim 1 | . 1 . Fabricators . | . . . Repair Stations . | . . . Recycling Units . | . . . Scanalyzers . | . . . Garrison Access . | . . . Data Cores Recovered . | . . . Used . | . . . Hacking Detections 1 | . 1 . Full Trace Events . | . . . Feedback Events . | . . . Feedback Blocked . | . . . Robot Schematics Acquired . | . . . Robots Built . | . . . Authchips . | . . . Time . | . . . Total Robot Build Rating . | . . . Part Schematics Acquired . | . . . Parts Built . | . . . Authchips . | . . . Time . | . . . Total Part Build Rating . | . . . Parts Repaired . | . . . Time . | . . . Parts Recycled . | . . . Recycled Matter . | . . . Retrieved Matter . | . . . Retrieved Components . | . . . Parts Scanalyzed . | . . . Part Schematics Acquired . | . . . Parts Damaged . | . . . Bothacking | -11 -10 -10 ------------ Run | Yrd Mat Sub Used RIF Installer . | . . . Robots Hacked . | . . . Non-combat . | . . . Combat . | . . . Robot Hacks Applied . | . . . Relay Couplers Released . | . . . Fabnet Peak Effective % . | . . . Robots Rewired . | . . . Allies Hacked . | . . . Hacks Repelled . | . . . Allies | -11 -10 -10 -------- Run | Yrd Mat Sub Total Allies . | . . . Largest Group . | . . . Highest-Rated Group . | . . . Highest-Rated Ally . | . . . Total Orders . | . . . Ally Attacks . | . . . Total Damage . | . . . Kills . | . . . Allies Corrupted . | . . . Allies Melted . | . . . Intel | -11 -10 -10 ------- Run | Yrd Mat Sub Active Infowar (turns) 767 | 19 192 556 Optics 24 | . . 24 Seismic 743 | 19 192 532 Robot Analysis Total . | . . . Derelict Logs Recovered . | . . . Drone Launches . | . . . Drone Recoveries . | . . . Exploration | -11 -10 -10 ------------- Run | Yrd Mat Sub Turns Passed 843 | 83 192 568 Spaces Moved 637 | 70 123 444 Core 5 | 5 . . Treads 6 | 4 . 2 Legs . | . . . Wheels 626 | 61 123 442 Hover . | . . . Flight . | . . . Fastest Speed 50 | 50 95 95 Average Speed 99 | 89 95 103 Slowest Speed 160 | 160 95 160 Overloaded Moves . | . . . Propulsion Burnouts . | . . . Robots Hopped . | . . . Potential Cave-ins . | . . . Cave-ins Triggered . | . . . Exploration Rate (%) 23 | 4 33 32 Regions Visited 2 Branch Regions 1 Pre-discovered Areas . | . . . Known Exits Taken . | . . . Unknown Exits Taken 2 | 1 1 . Scrap Searched 2 | . . 2 Spaces Dug . | . . . Terrain Destroyed . | . . . Melee . | . . . Projectile . | . . . AOE . | . . . Terrain Rammed . | . . . Walls Destroyed . | . . . Machines Disabled . | . . . Actions | -11 -10 -10 --------- Run | Yrd Mat Sub Total 743 | 84 162 497 Wait 18 | . 7 11 Move 635 | 69 122 444 Hop . | . . . Pick Up 13 | 5 5 3 Fast Attach 12 | 8 2 2 Attach 8 | . . 8 Detach 3 | 1 2 . Swap 1 | . . 1 Drop 8 | . 5 3 Fire 45 | 1 19 25 Melee . | . . . Ram . | . . . Kick . | . . . Crush . | . . . Escape Stasis . | . . . Rewire . | . . . Trap . | . . . Miscellaneous . | . . . Route ------- -11/Scrapyard -10/Materials (discovered 2 exits: [*Min] / [*Sub]) -10/Subcaves History --------- Turn | Location | Event 21 | -11/Scrapyard | Discovered new exit (range 15) 84 | -11/Scrapyard | Entered Materials 173 | -10/Materials | Discovered new exit (range 16) 264 | -10/Materials | Destroyed 7 combat bots 272 | -10/Materials | Discovered new exit (range 5) 276 | -10/Materials | Entered Subcaves 277 | -10/Subcaves | Approached by a straggling Scientist 324 | -10/Subcaves | Build established: Mutant 500 | -10/Subcaves | Core integrity fell below 50% 831 | -10/Subcaves | Core integrity fell below 20% 844 | -10/Subcaves | Destroyed by 3G-VEV(R) with Subdweller Beam Cannon Last Messages --------------- 00785_ Beam Rifle fries itself beyond repair. SP-7G8(c): "I think it's somewhere north of here" 00786_ Flight Unit fries itself beyond repair. 00788_ Acquired 12 matter. 00790_ Lgt. Armor Plating fries itself beyond repair. 00793_ Lgt. Treads fries itself beyond repair. 00808_ Seismic Detector destroyed. 00809_ Acquired 5 matter. 00819_ Lgt. Treads destroyed. 00823_ Critical hit (Meltdown: +260). 00826_ Ion Engine destroyed. 00829_ Sub. Monowheel destroyed. 00831_ Beam Cannon destroyed. 00832_ Sub. Optics destroyed. SP-7G8(c): "I think it's somewhere north of here" 00842_ S2-QOV(R) destroyed. 00844_ Sub. Machine Gun destroyed. Map ----- +----------------------------------------------------+ | ?????????????????????????????????????????????????? | | ?????????????????????????????????????????????????? | | ?????????????????????????????????????????????????? | | ?????????????????????????????????????????????????? | | ?????????????????????????????????????????????????? | | ?????????????????????????????????????????????????? | | ?????????????????????????????????????????????????? | | ?????????????????????????????????????????????????? | | ?????????????????????????????????????????????????? | | ?????????????????????????????????????? #?????????? | | ????????????????????????????????####? ??????????? | | ???????????????????????????????? ## ##?????????? | | ??????????????????????????????## % ??????????? | | ?????????????????????????????? ???????????? | | ?????????????????????????????? ????????????? | | ????????????????####?????????? #?????????????? | | ??????????????? # ##???????? #??????????????? | | ???????????????? "" #######?# #???????????????? | | ?????????????????? ### #???????????????? | | ???????????????????? #???????????????? | | ?????????????????????#% %#????????????????? | | ??????????????????????# ###??????????????? | | ????????????????????????# ##?????????????? | | ?????????????????????????#[ #?????????????? | | ????????????????????????##%Rc #?????????????? | | ????????????????????????#@& ##?????????????? | | ????????????????????????#### #??????????????? | | ???????????????????????????##### #??###?????????? | | ???????????????????????????????# #### ######????? | | ??????????????????????????????## ## % #####? | | ???????????????????????????#### % ## | | ??????????????????????????## % # | | ??????????????????????????# % | | ??????????????????????????## ## | | ???????????????????????????## ##?##### | | ????????????????????????????# ###????????? | | #???????####????????????????#### #??????????????? | | #??????# ##??????????????????# #??###?????????? | | ?####?# #????#########????## ## ##????????? | | ## ### ###### ##?### #????????? | | ## # # #### ### ##????????? | | #?# ##??## ##% #?????????? | | # #?# #????# # #?????????? | | ?# ### ## #????# #####?????????? | | ?# # ## #????# ##?????????????? | | ## ## ???# ## #??????????????? | | # ### ? #### #??????????????? | | # #?##### #??? #??????????????? | | # #?????# ???# #??????????????? | | #????# ??? #??????????????? | +----------------------------------------------------+ Best States ------------- Heat Dissipation 25 Energy Generation 15 Energy Capacity 250 Matter Stores 362 Matter Capacity 500 Sight Range 21 Terrain Scan Density 10 Evasion (%) 44 Recoil Reduction 1 Item Schematics ----------------- None Robot Schematics ------------------ None Fabricated ------------ Nothing Repaired ---------- Nothing Alien Tech Used ----------------- None Achievements -------------- None Challenges ------------ None Game ------ Seed VisualHeatGreatsword Manual? 0 Play Time 00:08:54 Cumulative 57.1 hours Start 2025.09.16 @ 20:41:17 End 2025.09.16 @ 20:49:56 Sessions 1 Manual Loads 0 Difficulty Rogue Special Mode None Game No. 106 Rogue 106 Adventurer 0 Explorer 0 Win Type - Total 0 Types 0/0/0/0/0/0/0/0/0/0 Lore% 47 Gallery% 33 Achievement% 31 Wizard Run 0 Options --------- Layout 2 ASCII 0 Keyboard 1 Movement Arrows Keybinds 0 Fullscreen 2 Font 32/SmallcapsGlow Map View 50x44 Zoom Use 0% Tactical HUD 1 Map Filters NONE Filters NONE Steam 1 RUN: 571a2737-7839-4fd1-a81a-e2270a50d2ec